[Event "December 12 Early 2023"]
[Site "https://www.chess.com"]
[Date "2023.12.12"]
[Round "6"]
[White "Parra Gomez, Adrian"]
[Black "Manukyan, Sargis A."]
[Result "0-1"]
[Board "82"]
[TimeControl "180+1"]
[WhiteFideId "3513106"]
[BlackFideId "13303970"]
[WhiteElo "2430"]
[BlackElo "2624"]
[WhiteTeam "CUB"]
[BlackTeam "ARM"]
[WhiteClock "0:00:00"]
[BlackClock "0:01:04"]

1. d4 {[%clk 0:03:00]}  d5 {[%clk 0:02:59]} 2. c4 {[%clk 0:03:01]}  e6 {[%clk 0:02:59]} 3. Nc3 {[%clk 0:03:01]}  Nf6 {[%clk 0:03:00]} 4. Bg5 {[%clk 0:03:00]}  Be7 {[%clk 0:03:00]} 5. e3 {[%clk 0:02:59]}  O-O {[%clk 0:03:01]} 6. Qc2 {[%clk 0:02:56]}  h6 {[%clk 0:03:01]} 7. Bf4 {[%clk 0:02:56]}  c5 {[%clk 0:02:57]} 8. dxc5 {[%clk 0:02:55]}  Na6 {[%clk 0:02:57]} 9. cxd5 {[%clk 0:02:51]}  exd5 {[%clk 0:02:56]} 10. Bxa6 {[%clk 0:02:50]}  bxa6 {[%clk 0:02:56]} 11. b4 {[%clk 0:02:06]}  a5 {[%clk 0:02:56]} 12. a3 {[%clk 0:02:05]}  d4 {[%clk 0:02:56]} 13. exd4 {[%clk 0:02:01]}  axb4 {[%clk 0:02:54]} 14. axb4 {[%clk 0:02:01]}  Qxd4 {[%clk 0:02:55]} 15. Nge2 {[%clk 0:02:01]}  Qc4 {[%clk 0:02:51]} 16. O-O {[%clk 0:01:54]}  Qxb4 {[%clk 0:02:51]} 17. Be3 {[%clk 0:01:28]}  Qh4 {[%clk 0:02:25]} 18. h3 {[%clk 0:00:54]}  Bb7 {[%clk 0:02:04]} 19. Nb5 {[%clk 0:00:53]}  Be4 {[%clk 0:02:00]} 20. Qa4 {[%clk 0:00:47]}  Qh5 {[%clk 0:01:57]} 21. Ng3 {[%clk 0:00:47]}  Qg6 {[%clk 0:01:52]} 22. Nd6 {[%clk 0:00:41]}  Bd5 {[%clk 0:01:48]} 23. Ndf5 {[%clk 0:00:37]}  Rfe8 {[%clk 0:01:45]} 24. Rfd1 {[%clk 0:00:31]}  Bf8 {[%clk 0:01:39]} 25. Rd4 {[%clk 0:00:25]}  Bxc5 {[%clk 0:01:33]} 26. Rxd5 {[%clk 0:00:21]}  Bxe3 {[%clk 0:01:30]} 27. Nxe3 {[%clk 0:00:20]}  Rxe3 {[%clk 0:01:26]} 28. Ra5 {[%clk 0:00:13]}  Re7 {[%clk 0:01:24]} 29. Qc6 {[%clk 0:00:13]}  Rae8 {[%clk 0:01:19]} 30. Rxa7 {[%clk 0:00:11]}  Re1+ {[%clk 0:01:13]} 31. Rxe1 {[%clk 0:00:12]}  Rxe1+ {[%clk 0:01:14]} 32. Kh2 {[%clk 0:00:12]}  Ng4+ {[%clk 0:01:14]} 33. hxg4 {[%clk 0:00:11]}  Qxc6 {[%clk 0:01:15]} 34. Ra3 {[%clk 0:00:07]}  Qd6 {[%clk 0:01:15]} 35. Rf3 {[%clk 0:00:07]}  Qd1 {[%clk 0:01:15]} 36. Nf5 {[%clk 0:00:07]}  Rh1+ {[%clk 0:01:14]} 37. Kg3 {[%clk 0:00:07]}  g5 {[%clk 0:01:13]} 38. Re3 {[%clk 0:00:05]}  Qd8 {[%clk 0:01:10]} 39. Ne7+ {[%clk 0:00:04]}  Kh7 {[%clk 0:01:10]} 40. Nf5 {[%clk 0:00:04]}  Qc7+ {[%clk 0:01:10]} 41. Kf3 {[%clk 0:00:02]}  Qf4+ {[%clk 0:01:07]} 42. Ke2 {[%clk 0:00:02]}  Qc4+ {[%clk 0:01:07]} 43. Kf3 {[%clk 0:00:02]}  Qd5+ {[%clk 0:01:07]} 44. Kg3 {[%clk 0:00:02]}  h5 {[%clk 0:01:03]} 45. Re7 {[%clk 0:00:02]}  h4+ {[%clk 0:01:03]} 46. Nxh4 {[%clk 0:00:01]}  gxh4+ {[%clk 0:01:04]} 47. Kf4 {[%clk 0:00:00]}  Qd6+ {[%clk 0:01:04]} 0-1

[Event "December 12 Early 2023"]
[Site "https://www.chess.com"]
[Date "2023.12.12"]
[Round "6"]
[White "Zeneli, Klendi"]
[Black "Banzea, Alexandru-Bogdan"]
[Result "1-0"]
[Board "85"]
[TimeControl "180+1"]
[WhiteFideId "4706609"]
[BlackFideId "1232622"]
[WhiteElo "2366"]
[BlackElo "2610"]
[WhiteTeam "ALB"]
[BlackTeam "ROU"]
[WhiteClock "0:00:15"]
[BlackClock "0:00:00"]

1. e4 {[%clk 0:02:59]}  c5 {[%clk 0:02:58]} 2. c3 {[%clk 0:02:58]}  d5 {[%clk 0:02:56]} 3. exd5 {[%clk 0:02:59]}  Qxd5 {[%clk 0:02:57]} 4. Nf3 {[%clk 0:02:57]}  g6 {[%clk 0:02:57]} 5. d4 {[%clk 0:02:57]}  Bg7 {[%clk 0:02:57]} 6. Na3 {[%clk 0:02:57]}  cxd4 {[%clk 0:02:57]} 7. Nb5 {[%clk 0:02:57]}  Na6 {[%clk 0:02:57]} 8. Nbxd4 {[%clk 0:02:56]}  Nf6 {[%clk 0:02:57]} 9. Be2 {[%clk 0:02:55]}  O-O {[%clk 0:02:56]} 10. O-O {[%clk 0:02:56]}  Nc5 {[%clk 0:02:50]} 11. Be3 {[%clk 0:02:53]}  b6 {[%clk 0:02:42]} 12. Nb5 {[%clk 0:02:38]}  Bb7 {[%clk 0:02:33]} 13. Qc2 {[%clk 0:02:34]}  Rfc8 {[%clk 0:02:09]} 14. a4 {[%clk 0:02:27]}  a6 {[%clk 0:02:06]} 15. Nbd4 {[%clk 0:02:23]}  e5 {[%clk 0:01:55]} 16. c4 {[%clk 0:02:22]}  Qd7 {[%clk 0:01:26]} 17. Nxe5 {[%clk 0:02:16]}  Qe7 {[%clk 0:01:25]} 18. Nef3 {[%clk 0:02:07]}  Ng4 {[%clk 0:01:12]} 19. Bg5 {[%clk 0:02:01]}  Qc7 {[%clk 0:01:08]} 20. h3 {[%clk 0:01:48]}  Bxd4 {[%clk 0:01:08]} 21. hxg4 {[%clk 0:01:48]}  Be4 {[%clk 0:01:08]} 22. Qc1 {[%clk 0:01:28]}  Bg7 {[%clk 0:00:51]} 23. Ra3 {[%clk 0:01:23]}  Qc6 {[%clk 0:00:50]} 24. b4 {[%clk 0:01:19]}  Nxa4 {[%clk 0:00:44]} 25. Nd2 {[%clk 0:01:07]}  Bb2 {[%clk 0:00:43]} 26. Qd1 {[%clk 0:00:59]}  Bxa3 {[%clk 0:00:40]} 27. Nxe4 {[%clk 0:00:59]}  Qxe4 {[%clk 0:00:33]} 28. Bf3 {[%clk 0:00:55]}  Qxc4 {[%clk 0:00:12]} 29. Bxa8 {[%clk 0:00:48]}  Rxa8 {[%clk 0:00:13]} 30. Qxa4 {[%clk 0:00:47]}  Bxb4 {[%clk 0:00:13]} 31. Rc1 {[%clk 0:00:43]}  Qxg4 {[%clk 0:00:10]} 32. Bh6 {[%clk 0:00:39]}  a5 {[%clk 0:00:04]} 33. Qc6 {[%clk 0:00:37]}  Rd8 {[%clk 0:00:03]} 34. Qf6 {[%clk 0:00:30]}  Rd1+ {[%clk 0:00:03]} 35. Kh2 {[%clk 0:00:24]}  Qh5+ {[%clk 0:00:02]} 36. Kg3 {[%clk 0:00:23]}  Bd6+ {[%clk 0:00:02]} 37. f4 {[%clk 0:00:20]}  Rd3+ {[%clk 0:00:02]} 38. Kf2 {[%clk 0:00:20]}  Bf8 {[%clk 0:00:01]} 39. Bxf8 {[%clk 0:00:16]}  Rd2+ {[%clk 0:00:00]} 40. Kg1 {[%clk 0:00:15]} 1-0

[Event "December 12 Early 2023"]
[Site "https://www.chess.com"]
[Date "2023.12.12"]
[Round "6"]
[White "Al-Tarboush, Ward"]
[Black "Storn, Justin"]
[Result "1-0"]
[Board "86"]
[TimeControl "180+1"]
[WhiteFideId "7601450"]
[BlackFideId "30922720"]
[WhiteElo "2610"]
[BlackElo "2352"]
[WhiteTeam "NOR"]
[BlackTeam "USA"]
[WhiteClock "0:01:40"]
[BlackClock "0:00:06"]

1. e4 {[%clk 0:03:00]}  c6 {[%clk 0:02:58]} 2. Nf3 {[%clk 0:03:01]}  d5 {[%clk 0:02:59]} 3. Nc3 {[%clk 0:03:01]}  dxe4 {[%clk 0:02:59]} 4. Nxe4 {[%clk 0:03:02]}  Nf6 {[%clk 0:03:00]} 5. Nxf6+ {[%clk 0:03:02]}  exf6 {[%clk 0:03:00]} 6. Bc4 {[%clk 0:03:03]}  Bd6 {[%clk 0:03:00]} 7. Qe2+ {[%clk 0:03:03]}  Qe7 {[%clk 0:03:00]} 8. Qxe7+ {[%clk 0:03:03]}  Kxe7 {[%clk 0:03:00]} 9. O-O {[%clk 0:03:03]}  Rd8 {[%clk 0:02:58]} 10. Re1+ {[%clk 0:03:03]}  Kf8 {[%clk 0:02:59]} 11. d4 {[%clk 0:03:04]}  Nd7 {[%clk 0:02:58]} 12. Bd3 {[%clk 0:03:01]}  Kg8 {[%clk 0:02:41]} 13. c4 {[%clk 0:03:00]}  Nf8 {[%clk 0:02:40]} 14. Be3 {[%clk 0:02:58]}  Be6 {[%clk 0:02:27]} 15. Rad1 {[%clk 0:02:53]}  Ng6 {[%clk 0:02:20]} 16. b3 {[%clk 0:02:52]}  a5 {[%clk 0:02:14]} 17. a4 {[%clk 0:02:50]}  Bg4 {[%clk 0:02:11]} 18. Be2 {[%clk 0:02:48]}  Nf4 {[%clk 0:02:01]} 19. Bxf4 {[%clk 0:02:46]}  Bxf4 {[%clk 0:02:02]} 20. h3 {[%clk 0:02:42]}  Bf5 {[%clk 0:01:55]} 21. g3 {[%clk 0:02:38]}  Bd6 {[%clk 0:01:48]} 22. g4 {[%clk 0:02:38]}  Bc2 {[%clk 0:01:17]} 23. Rd2 {[%clk 0:02:38]}  Bxb3 {[%clk 0:01:14]} 24. Rb2 {[%clk 0:02:37]}  Bxa4 {[%clk 0:01:12]} 25. c5 {[%clk 0:02:21]}  Bf4 {[%clk 0:01:10]} 26. Ra1 {[%clk 0:02:20]}  Bb5 {[%clk 0:00:58]} 27. Bxb5 {[%clk 0:02:20]}  cxb5 {[%clk 0:00:59]} 28. Rxb5 {[%clk 0:02:20]}  Rd7 {[%clk 0:00:46]} 29. Rbxa5 {[%clk 0:02:19]}  Rxa5 {[%clk 0:00:46]} 30. Rxa5 {[%clk 0:02:20]}  h5 {[%clk 0:00:43]} 31. Ra7 {[%clk 0:02:13]}  Rc7 {[%clk 0:00:40]} 32. Ra8+ {[%clk 0:01:59]}  Kh7 {[%clk 0:00:40]} 33. Rd8 {[%clk 0:01:59]}  hxg4 {[%clk 0:00:35]} 34. hxg4 {[%clk 0:02:00]}  Kg6 {[%clk 0:00:31]} 35. Kg2 {[%clk 0:01:55]}  Rc6 {[%clk 0:00:20]} 36. Nh4+ {[%clk 0:01:49]}  Kh7 {[%clk 0:00:12]} 37. Nf5 {[%clk 0:01:50]}  g6 {[%clk 0:00:10]} 38. Nd6 {[%clk 0:01:48]}  Rc7 {[%clk 0:00:10]} 39. Ne8 {[%clk 0:01:47]}  Re7 {[%clk 0:00:08]} 40. Nxf6+ {[%clk 0:01:47]}  Kg7 {[%clk 0:00:08]} 41. Ne8+ {[%clk 0:01:47]}  Kh6 {[%clk 0:00:07]} 42. Kf3 {[%clk 0:01:43]}  Bd2 {[%clk 0:00:08]} 43. Nf6 {[%clk 0:01:41]}  Kg5 {[%clk 0:00:07]} 44. Ne4+ {[%clk 0:01:40]}  Kh6 {[%clk 0:00:06]} 45. Nxd2 {[%clk 0:01:40]} 1-0

[Event "December 12 Early 2023"]
[Site "https://www.chess.com"]
[Date "2023.12.12"]
[Round "6"]
[White "Santos, Rafael Ventura Dos"]
[Black "Sahib Singh"]
[Result "0-1"]
[Board "89"]
[TimeControl "180+1"]
[WhiteFideId "2122227"]
[BlackFideId "25618342"]
[WhiteElo "2298"]
[BlackElo "2603"]
[WhiteTeam "BRA"]
[BlackTeam "IND"]
[WhiteClock "0:00:17"]
[BlackClock "0:00:08"]

1. e4 {[%clk 0:03:00]}  e6 {[%clk 0:02:59]} 2. d4 {[%clk 0:02:59]}  d5 {[%clk 0:03:00]} 3. Nd2 {[%clk 0:02:59]}  c5 {[%clk 0:02:59]} 4. exd5 {[%clk 0:02:59]}  Qxd5 {[%clk 0:02:58]} 5. Be2 {[%clk 0:03:00]}  cxd4 {[%clk 0:02:53]} 6. Bf3 {[%clk 0:02:59]}  Qd8 {[%clk 0:02:47]} 7. Nb3 {[%clk 0:02:56]}  e5 {[%clk 0:02:46]} 8. Ne2 {[%clk 0:02:54]}  Nf6 {[%clk 0:02:44]} 9. Ng3 {[%clk 0:02:53]}  Nc6 {[%clk 0:02:38]} 10. O-O {[%clk 0:02:44]}  Bd6 {[%clk 0:02:34]} 11. c3 {[%clk 0:02:38]}  dxc3 {[%clk 0:02:28]} 12. bxc3 {[%clk 0:02:39]}  O-O {[%clk 0:02:27]} 13. Qc2 {[%clk 0:02:34]}  Qe7 {[%clk 0:02:18]} 14. Rd1 {[%clk 0:02:33]}  Rd8 {[%clk 0:02:11]} 15. Bg5 {[%clk 0:02:25]}  h6 {[%clk 0:01:57]} 16. Bxf6 {[%clk 0:02:23]}  Qxf6 {[%clk 0:01:58]} 17. Ne4 {[%clk 0:02:23]}  Qg6 {[%clk 0:01:58]} 18. Qd2 {[%clk 0:02:21]}  Be7 {[%clk 0:01:55]} 19. Qe3 {[%clk 0:02:20]}  Bf5 {[%clk 0:01:33]} 20. Ng3 {[%clk 0:02:19]}  Bc2 {[%clk 0:01:29]} 21. Rxd8+ {[%clk 0:02:15]}  Rxd8 {[%clk 0:01:29]} 22. Bxc6 {[%clk 0:02:16]}  Qxc6 {[%clk 0:01:28]} 23. Qxa7 {[%clk 0:02:15]}  Qxc3 {[%clk 0:01:25]} 24. Qe3 {[%clk 0:02:00]}  Qxe3 {[%clk 0:00:47]} 25. fxe3 {[%clk 0:02:00]}  Rd3 {[%clk 0:00:47]} 26. Na5 {[%clk 0:01:38]}  Bc5 {[%clk 0:00:47]} 27. Kh1 {[%clk 0:01:29]}  Bxe3 {[%clk 0:00:44]} 28. Nxb7 {[%clk 0:01:25]}  Bd4 {[%clk 0:00:42]} 29. Re1 {[%clk 0:01:21]}  Bf2 {[%clk 0:00:41]} 30. Rf1 {[%clk 0:01:20]}  Bxg3 {[%clk 0:00:41]} 31. hxg3 {[%clk 0:01:21]}  Rxg3 {[%clk 0:00:40]} 32. Nd6 {[%clk 0:01:19]}  f6 {[%clk 0:00:33]} 33. Rc1 {[%clk 0:01:14]}  Rd3 {[%clk 0:00:18]} 34. Nc4 {[%clk 0:00:54]}  Ba4 {[%clk 0:00:13]} 35. Kh2 {[%clk 0:00:50]}  Rd4 {[%clk 0:00:10]} 36. Rc3 {[%clk 0:00:46]}  h5 {[%clk 0:00:09]} 37. Ne3 {[%clk 0:00:43]}  g6 {[%clk 0:00:07]} 38. Rc7 {[%clk 0:00:42]}  Rd7 {[%clk 0:00:05]} 39. Rc4 {[%clk 0:00:40]}  Bb5 {[%clk 0:00:05]} 40. Rb4 {[%clk 0:00:40]}  Bd3 {[%clk 0:00:06]} 41. Rb6 {[%clk 0:00:38]}  Kf7 {[%clk 0:00:06]} 42. a4 {[%clk 0:00:39]}  f5 {[%clk 0:00:06]} 43. a5 {[%clk 0:00:37]}  f4 {[%clk 0:00:06]} 44. Nd1 {[%clk 0:00:38]}  e4 {[%clk 0:00:06]} 45. Kg1 {[%clk 0:00:36]}  e3 {[%clk 0:00:06]} 46. Nc3 {[%clk 0:00:34]}  Rc7 {[%clk 0:00:06]} 47. Rb3 {[%clk 0:00:27]}  Rc5 {[%clk 0:00:06]} 48. g3 {[%clk 0:00:22]}  f3 {[%clk 0:00:06]} 49. Nd1 {[%clk 0:00:17]}  e2 {[%clk 0:00:07]} 50. Nf2 {[%clk 0:00:17]}  e1=Q+ {[%clk 0:00:07]} 51. Kh2 {[%clk 0:00:17]}  Qxf2+ {[%clk 0:00:08]} 0-1

[Event "December 12 Early 2023"]
[Site "https://www.chess.com"]
[Date "2023.12.12"]
[Round "6"]
[White "Daroczi, Donat"]
[Black "Manukian, Artak"]
[Result "0-1"]
[Board "90"]
[TimeControl "180+1"]
[WhiteFideId "788376"]
[BlackFideId "13301373"]
[WhiteElo "2292"]
[BlackElo "2598"]
[WhiteTeam "HUN"]
[BlackTeam "ARM"]
[WhiteClock "0:01:02"]
[BlackClock "0:02:11"]

1. d4 {[%clk 0:03:00]}  d5 {[%clk 0:02:59]} 2. c4 {[%clk 0:03:00]}  dxc4 {[%clk 0:02:59]} 3. Nf3 {[%clk 0:02:58]}  Nf6 {[%clk 0:02:59]} 4. e3 {[%clk 0:02:56]}  e6 {[%clk 0:02:59]} 5. Bxc4 {[%clk 0:02:56]}  c5 {[%clk 0:02:59]} 6. O-O {[%clk 0:02:55]}  a6 {[%clk 0:02:59]} 7. a4 {[%clk 0:02:55]}  Nc6 {[%clk 0:02:59]} 8. b3 {[%clk 0:02:55]}  cxd4 {[%clk 0:02:55]} 9. exd4 {[%clk 0:02:51]}  Be7 {[%clk 0:02:54]} 10. Bb2 {[%clk 0:02:45]}  O-O {[%clk 0:02:54]} 11. Nbd2 {[%clk 0:02:37]}  Nb4 {[%clk 0:02:52]} 12. Qe2 {[%clk 0:02:34]}  b6 {[%clk 0:02:50]} 13. Rfd1 {[%clk 0:02:26]}  Bb7 {[%clk 0:02:49]} 14. Nf1 {[%clk 0:02:17]}  Nbd5 {[%clk 0:02:44]} 15. Ne5 {[%clk 0:02:13]}  Nf4 {[%clk 0:02:42]} 16. Qd2 {[%clk 0:02:04]}  Nxg2 {[%clk 0:02:29]} 17. f3 {[%clk 0:02:03]}  Nh4 {[%clk 0:02:28]} 18. Qf2 {[%clk 0:02:00]}  Nh5 {[%clk 0:02:22]} 19. Ng3 {[%clk 0:01:49]}  Nf4 {[%clk 0:02:18]} 20. Bf1 {[%clk 0:01:02]}  f6 {[%clk 0:02:11]} 0-1

[Event "December 12 Early 2023"]
[Site "https://www.chess.com"]
[Date "2023.12.12"]
[Round "6"]
[White "Assylov, Miras"]
[Black "Martinez Ramirez, Lennis"]
[Result "1-0"]
[Board "91"]
[TimeControl "180+1"]
[WhiteFideId "13728873"]
[BlackFideId "3509079"]
[WhiteElo "2593"]
[BlackElo "2675"]
[WhiteTeam "KAZ"]
[BlackTeam "CUB"]
[WhiteClock "0:00:03"]
[BlackClock "0:00:00"]

1. b3 {[%clk 0:02:57]}  d5 {[%clk 0:02:59]} 2. Bb2 {[%clk 0:02:57]}  Nc6 {[%clk 0:03:00]} 3. Nf3 {[%clk 0:02:35]}  Bg4 {[%clk 0:02:59]} 4. e3 {[%clk 0:02:07]}  e5 {[%clk 0:02:59]} 5. h3 {[%clk 0:02:08]}  Bxf3 {[%clk 0:02:59]} 6. Qxf3 {[%clk 0:02:08]}  a6 {[%clk 0:03:00]} 7. d3 {[%clk 0:02:05]}  Nf6 {[%clk 0:02:55]} 8. Nd2 {[%clk 0:02:05]}  Bb4 {[%clk 0:02:54]} 9. Qd1 {[%clk 0:02:04]}  d4 {[%clk 0:02:47]} 10. e4 {[%clk 0:02:00]}  h5 {[%clk 0:02:36]} 11. Be2 {[%clk 0:01:53]}  h4 {[%clk 0:02:33]} 12. O-O {[%clk 0:01:53]}  g5 {[%clk 0:02:32]} 13. Bc1 {[%clk 0:01:45]}  Rg8 {[%clk 0:02:23]} 14. Bg4 {[%clk 0:01:44]}  Nh7 {[%clk 0:02:05]} 15. Nf3 {[%clk 0:01:40]}  Nf8 {[%clk 0:02:01]} 16. Bf5 {[%clk 0:01:33]}  Qf6 {[%clk 0:01:56]} 17. Nh2 {[%clk 0:01:33]}  Ne7 {[%clk 0:01:51]} 18. Ng4 {[%clk 0:01:29]}  Qg7 {[%clk 0:01:36]} 19. Qf3 {[%clk 0:01:28]}  Bd6 {[%clk 0:01:23]} 20. Bd2 {[%clk 0:01:15]}  f6 {[%clk 0:01:12]} 21. c3 {[%clk 0:00:44]}  dxc3 {[%clk 0:01:07]} 22. Bxc3 {[%clk 0:00:45]}  Nxf5 {[%clk 0:00:53]} 23. Qxf5 {[%clk 0:00:45]}  Nd7 {[%clk 0:00:53]} 24. Qe6+ {[%clk 0:00:42]}  Kd8 {[%clk 0:00:53]} 25. d4 {[%clk 0:00:41]}  Qg6 {[%clk 0:00:40]} 26. dxe5 {[%clk 0:00:38]}  fxe5 {[%clk 0:00:39]} 27. Qd5 {[%clk 0:00:34]}  Kc8 {[%clk 0:00:27]} 28. Rfd1 {[%clk 0:00:25]}  Re8 {[%clk 0:00:27]} 29. Rac1 {[%clk 0:00:20]}  Nb6 {[%clk 0:00:15]} 30. Qd3 {[%clk 0:00:19]}  Kb8 {[%clk 0:00:15]} 31. Ba5 {[%clk 0:00:18]}  Nc8 {[%clk 0:00:08]} 32. Ne3 {[%clk 0:00:09]}  c6 {[%clk 0:00:08]} 33. Nc4 {[%clk 0:00:05]}  Re6 {[%clk 0:00:09]} 34. Qe3 {[%clk 0:00:04]}  Be7 {[%clk 0:00:00]} 35. Bb6 {[%clk 0:00:03]} 1-0

[Event "December 12 Early 2023"]
[Site "https://www.chess.com"]
[Date "2023.12.12"]
[Round "6"]
[White "Schnaider, Ilan"]
[Black "Deveci, Huseyin Said"]
[Result "1-0"]
[Board "92"]
[TimeControl "180+1"]
[WhiteFideId "169013"]
[BlackFideId "26322455"]
[WhiteElo "2666"]
[BlackElo "2272"]
[WhiteTeam "ARG"]
[BlackTeam "TUR"]
[WhiteClock "0:02:36"]
[BlackClock "0:01:57"]

1. e4 {[%clk 0:02:55]}  c5 {[%clk 0:02:57]} 2. Nf3 {[%clk 0:02:55]}  e6 {[%clk 0:02:57]} 3. d4 {[%clk 0:02:55]}  cxd4 {[%clk 0:02:58]} 4. Nxd4 {[%clk 0:02:56]}  a6 {[%clk 0:02:59]} 5. c4 {[%clk 0:02:56]}  Qc7 {[%clk 0:02:57]} 6. Nc3 {[%clk 0:02:53]}  Nf6 {[%clk 0:02:57]} 7. Qd3 {[%clk 0:02:52]}  Bb4 {[%clk 0:02:57]} 8. a3 {[%clk 0:02:52]}  Bxc3+ {[%clk 0:02:57]} 9. Qxc3 {[%clk 0:02:53]}  Nxe4 {[%clk 0:02:57]} 10. Nb5 {[%clk 0:02:37]}  axb5 {[%clk 0:02:13]} 11. Qxg7 {[%clk 0:02:37]}  Rf8 {[%clk 0:02:13]} 12. Bh6 {[%clk 0:02:37]}  Qc5 {[%clk 0:02:12]} 13. f3 {[%clk 0:02:37]}  Nd6 {[%clk 0:01:57]} 14. Qxf8# {[%clk 0:02:36]} 1-0

[Event "December 12 Early 2023"]
[Site "https://www.chess.com"]
[Date "2023.12.12"]
[Round "6"]
[White "Baziuk, Vladyslav"]
[Black "Ambartsumova, Karina"]
[Result "1-0"]
[Board "94"]
[TimeControl "180+1"]
[WhiteFideId "34107940"]
[BlackFideId "4166299"]
[WhiteElo "2524"]
[BlackElo "2642"]
[WhiteTeam "UKR"]
[BlackTeam "RUS"]
[WhiteClock "0:00:03"]
[BlackClock "0:00:00"]

1. e4 {[%clk 0:03:00]}  e5 {[%clk 0:03:00]} 2. Nf3 {[%clk 0:03:00]}  Nc6 {[%clk 0:03:00]} 3. Bc4 {[%clk 0:03:00]}  Nf6 {[%clk 0:03:00]} 4. d4 {[%clk 0:02:59]}  exd4 {[%clk 0:02:57]} 5. e5 {[%clk 0:03:00]}  d5 {[%clk 0:02:56]} 6. Bb5 {[%clk 0:03:00]}  Ne4 {[%clk 0:02:56]} 7. Nxd4 {[%clk 0:03:01]}  Bd7 {[%clk 0:02:56]} 8. Bxc6 {[%clk 0:03:01]}  bxc6 {[%clk 0:02:56]} 9. O-O {[%clk 0:03:01]}  Bc5 {[%clk 0:02:56]} 10. f3 {[%clk 0:03:02]}  Ng5 {[%clk 0:02:55]} 11. Be3 {[%clk 0:03:02]}  O-O {[%clk 0:02:42]} 12. f4 {[%clk 0:03:01]}  Ne4 {[%clk 0:02:41]} 13. Nd2 {[%clk 0:03:01]}  f6 {[%clk 0:02:26]} 14. Nxe4 {[%clk 0:02:31]}  dxe4 {[%clk 0:02:27]} 15. Qd2 {[%clk 0:02:05]}  Qe7 {[%clk 0:02:15]} 16. exf6 {[%clk 0:01:40]}  Qxf6 {[%clk 0:02:07]} 17. b4 {[%clk 0:01:37]}  Bd6 {[%clk 0:01:46]} 18. c4 {[%clk 0:01:21]}  Rad8 {[%clk 0:01:22]} 19. c5 {[%clk 0:01:17]}  Be7 {[%clk 0:01:22]} 20. Qc2 {[%clk 0:01:13]}  Bf5 {[%clk 0:01:17]} 21. Rad1 {[%clk 0:01:05]}  Kh8 {[%clk 0:01:15]} 22. Qa4 {[%clk 0:01:01]}  Bg4 {[%clk 0:01:04]} 23. Rd2 {[%clk 0:00:55]}  Bd7 {[%clk 0:00:43]} 24. Qxa7 {[%clk 0:00:39]}  Rc8 {[%clk 0:00:43]} 25. Qa4 {[%clk 0:00:37]}  Ra8 {[%clk 0:00:37]} 26. Qc2 {[%clk 0:00:35]}  Bf5 {[%clk 0:00:36]} 27. a4 {[%clk 0:00:28]}  Rfb8 {[%clk 0:00:31]} 28. b5 {[%clk 0:00:28]}  cxb5 {[%clk 0:00:30]} 29. axb5 {[%clk 0:00:26]}  Re8 {[%clk 0:00:17]} 30. Rb1 {[%clk 0:00:21]}  Bg6 {[%clk 0:00:14]} 31. Rdd1 {[%clk 0:00:18]}  Qf7 {[%clk 0:00:13]} 32. b6 {[%clk 0:00:17]}  cxb6 {[%clk 0:00:13]} 33. cxb6 {[%clk 0:00:17]}  Ra2 {[%clk 0:00:07]} 34. Rb2 {[%clk 0:00:17]}  Rxb2 {[%clk 0:00:07]} 35. Qxb2 {[%clk 0:00:18]}  Bc5 {[%clk 0:00:07]} 36. b7 {[%clk 0:00:17]}  Rb8 {[%clk 0:00:07]} 37. Nc6 {[%clk 0:00:08]}  Bxe3+ {[%clk 0:00:06]} 38. Kh1 {[%clk 0:00:08]}  Bxf4 {[%clk 0:00:01]} 39. Nxb8 {[%clk 0:00:07]}  h5 {[%clk 0:00:01]} 40. Nc6 {[%clk 0:00:06]}  Qf5 {[%clk 0:00:01]} 41. Ne7 {[%clk 0:00:05]}  Qg4 {[%clk 0:00:00]} 42. Rf1 {[%clk 0:00:03]} 1-0

[Event "December 12 Early 2023"]
[Site "https://www.chess.com"]
[Date "2023.12.12"]
[Round "6"]
[White "Play, Gilles"]
[Black "Tanriverdi, Enes"]
[Result "1-0"]
[Board "95"]
[TimeControl "180+1"]
[WhiteFideId "45130892"]
[BlackFideId "34543279"]
[WhiteElo "2513"]
[BlackElo "2625"]
[WhiteTeam "FRA"]
[BlackTeam "TUR"]
[WhiteClock "0:00:23"]
[BlackClock "0:00:12"]

1. e4 {[%clk 0:03:00]}  c5 {[%clk 0:02:58]} 2. c3 {[%clk 0:03:00]}  g6 {[%clk 0:02:57]} 3. d4 {[%clk 0:03:00]}  Bg7 {[%clk 0:02:57]} 4. Nf3 {[%clk 0:02:58]}  cxd4 {[%clk 0:02:52]} 5. cxd4 {[%clk 0:02:57]}  d6 {[%clk 0:02:52]} 6. Nc3 {[%clk 0:02:55]}  Nf6 {[%clk 0:02:52]} 7. h3 {[%clk 0:02:54]}  O-O {[%clk 0:02:52]} 8. Be3 {[%clk 0:02:49]}  Nc6 {[%clk 0:02:47]} 9. Qd2 {[%clk 0:02:48]}  Bd7 {[%clk 0:02:26]} 10. Bh6 {[%clk 0:02:30]}  Bxh6 {[%clk 0:02:21]} 11. Qxh6 {[%clk 0:02:29]}  Qb6 {[%clk 0:02:21]} 12. e5 {[%clk 0:01:54]}  Qxb2 {[%clk 0:02:15]} 13. Rc1 {[%clk 0:01:36]}  Nh5 {[%clk 0:01:10]} 14. Bd3 {[%clk 0:01:09]}  Nb4 {[%clk 0:01:04]} 15. O-O {[%clk 0:00:56]}  f6 {[%clk 0:00:54]} 16. Bc4+ {[%clk 0:00:45]}  e6 {[%clk 0:00:51]} 17. d5 {[%clk 0:00:41]}  Rfc8 {[%clk 0:00:40]} 18. Ne4 {[%clk 0:00:34]}  exd5 {[%clk 0:00:31]} 19. Rb1 {[%clk 0:00:34]}  Qxb1 {[%clk 0:00:17]} 20. Nxf6+ {[%clk 0:00:26]}  Nxf6 {[%clk 0:00:16]} 21. exf6 {[%clk 0:00:27]}  Qxf1+ {[%clk 0:00:14]} 22. Bxf1 {[%clk 0:00:26]}  Kf7 {[%clk 0:00:11]} 23. Qg7+ {[%clk 0:00:26]}  Ke6 {[%clk 0:00:11]} 24. Qe7+ {[%clk 0:00:22]}  Kf5 {[%clk 0:00:12]} 25. g4+ {[%clk 0:00:23]}  Kf4 {[%clk 0:00:12]} 26. Qe3# {[%clk 0:00:23]} 1-0

[Event "December 12 Early 2023"]
[Site "https://www.chess.com"]
[Date "2023.12.12"]
[Round "6"]
[White "Goncalves, Davi Sulzbacher"]
[Black "Borgaonkar Akshay"]
[Result "0-1"]
[Board "96"]
[TimeControl "180+1"]
[WhiteFideId "2154510"]
[BlackFideId "25639110"]
[WhiteElo "2475"]
[BlackElo "2612"]
[WhiteTeam "BRA"]
[BlackTeam "IND"]
[WhiteClock "0:00:06"]
[BlackClock "0:01:32"]

1. d4 {[%clk 0:03:00]}  e6 {[%clk 0:02:58]} 2. c4 {[%clk 0:03:01]}  Nf6 {[%clk 0:02:58]} 3. Nf3 {[%clk 0:03:01]}  b6 {[%clk 0:02:57]} 4. Bg5 {[%clk 0:03:01]}  Bb7 {[%clk 0:02:58]} 5. Nc3 {[%clk 0:03:01]}  Bb4 {[%clk 0:02:56]} 6. e3 {[%clk 0:03:01]}  h6 {[%clk 0:02:56]} 7. Bh4 {[%clk 0:03:01]}  g5 {[%clk 0:02:56]} 8. Bg3 {[%clk 0:03:00]}  Ne4 {[%clk 0:02:57]} 9. Qb3 {[%clk 0:02:57]}  a5 {[%clk 0:02:54]} 10. Bd3 {[%clk 0:02:54]}  Nxg3 {[%clk 0:02:34]} 11. hxg3 {[%clk 0:02:53]}  Be7 {[%clk 0:02:32]} 12. d5 {[%clk 0:02:45]}  Na6 {[%clk 0:02:31]} 13. Ne4 {[%clk 0:02:36]}  Bb4+ {[%clk 0:02:12]} 14. Kf1 {[%clk 0:02:34]}  Nc5 {[%clk 0:02:05]} 15. Nxc5 {[%clk 0:02:19]}  Bxc5 {[%clk 0:02:03]} 16. Qc3 {[%clk 0:02:09]}  Rf8 {[%clk 0:02:01]} 17. Rxh6 {[%clk 0:02:03]}  Qe7 {[%clk 0:02:01]} 18. Qe5 {[%clk 0:01:35]}  O-O-O {[%clk 0:01:51]} 19. Qxg5 {[%clk 0:01:25]}  f6 {[%clk 0:01:43]} 20. Qh5 {[%clk 0:01:21]}  f5 {[%clk 0:01:40]} 21. Ne5 {[%clk 0:01:01]}  Qg7 {[%clk 0:01:34]} 22. Nf3 {[%clk 0:00:34]}  Rh8 {[%clk 0:01:33]} 23. Rxh8 {[%clk 0:00:06]}  Rxh8 {[%clk 0:01:32]} 0-1